fUST/lending_fUST_20240804
["ID","MTS","AMOUNT","RATE_DAILY","PERIOD"]
[334078277,1722741042673,-500.0,0.00015546,2]
[334078278,1722741042682,-506.36573081,0.00015546,2]
[334078279,1722741042691,-506.40557126,0.00015546,2]
[334078280,1722741042795,-506.83832216,0.00015546,2]
[334078281,1722741042805,-500.0,0.00015546,2]
[334078282,1722741042815,-500.0,0.00015546,2]
[334078283,1722741042825,-500.0,0.00015546,2]
[334078284,1722741042834,-500.0,0.00015546,2]
[334078285,1722741042843,-500.0,0.00015546,2]
[334078286,1722741042852,-500.0,0.00015546,2]
[334078287,1722741042861,-504.77383108,0.00015546,2]
[334078288,1722741042870,-503.4731269,0.00015546,2]
[334078289,1722741042880,-274.32016297,0.00015546,2]
[334078290,1722741042890,-500.0,0.00015546,2]
[334078291,1722741042899,-506.57991919,0.00015546,2]
[334078292,1722741042909,-500.0,0.00015546,2]
[334078293,1722741042918,-505.46066107,0.00015546,2]
[334078294,1722741042927,-500.0,0.00015546,2]
[334078295,1722741042939,-500.0,0.00015546,2]
[334078296,1722741042948,-500.0,0.00015546,2]
[334078297,1722741042958,-504.96932007,0.00015546,2]
[334078298,1722741042967,-500.0,0.00015546,2]
[334078299,1722741042978,-503.72612696,0.00015546,2]
[334078300,1722741042988,-500.0,0.00015546,2]
[334078301,1722741042997,-500.0,0.00015546,2]
[334078302,1722741043007,-500.0,0.00015546,2]
[334078303,1722741043018,-500.0,0.00015546,2]
[334078304,1722741043037,-500.0,0.00015546,2]
[334078305,1722741043050,-500.46323003,0.00015546,2]
[334078306,1722741043060,-500.0,0.00015546,2]
[334078307,1722741043073,-274.42144474,0.00015546,2]
[334078308,1722741043084,-637.77,0.00015546,2]
[334078309,1722741043094,-500.0,0.00015546,2]
[334078310,1722741043104,-500.0,0.00015546,2]
[334078311,1722741043115,-291.98509475,0.00015546,2]
[334078315,1722741043895,-208.01490525,0.00015546,2]
[334078316,1722741043907,-500.0,0.00015546,2]
[334078317,1722741043919,-500.0,0.00015546,2]
[334078318,1722741043931,-500.0,0.00015547,2]
[334078319,1722741043943,-500.0,0.00015547,2]
[334078320,1722741043957,-500.0,0.00015547,2]
[334078321,1722741043966,-506.02188445,0.00015547,2]
[334078322,1722741043976,-214.20223912,0.00015547,2]
[334078323,1722741043989,-285.79776088,0.00015547,2]
[334078324,1722741044001,-214.13223912,0.00015547,2]
[334078325,1722741044295,-288.21348595,0.00015547,2]
[334078326,1722741044305,-503.14008493,0.00015547,2]
[334078327,1722741044315,-500.0,0.00015547,2]
[334078328,1722741044324,-502.28954742,0.00015547,2]
[334078329,1722741044334,-500.0,0.00015547,2]
[334078331,1722741044343,-500.0,0.00015547,2]
[334078332,1722741044352,-500.0,0.00015547,2]
[334078333,1722741044362,-506.08444621,0.00015547,2]
[334078334,1722741044371,-346.28686281,0.00015547,2]
[334078335,1722741044380,-500.0,0.00015547,2]
[334078336,1722741044390,-500.0,0.00015547,2]
[334078337,1722741044400,-500.0,0.00015547,2]
[334078338,1722741044410,-500.0,0.00015547,2]
[334078339,1722741044420,-500.0,0.00015547,2]
[334078340,1722741044430,-502.33018296,0.00015547,2]
[334078341,1722741044440,-500.0,0.00015547,2]
[334078342,1722741044450,-214.16091081,0.00015547,2]
[334078343,1722741044460,-500.0,0.00015547,2]
[334078344,1722741044469,-500.0,0.00015547,2]
[334078345,1722741044479,-499.30609368,0.00015547,2]
[334078346,1722741044488,-500.0,0.00015547,2]
[334078347,1722741044504,-500.0,0.00015547,2]
[334078348,1722741044514,-500.0,0.00015547,2]
[334078349,1722741044524,-503.97916416,0.00015547,2]
[334078350,1722741044534,-500.0,0.00015547,2]
[334078351,1722741044544,-500.0,0.00015547,2]
[334078352,1722741044554,-500.0,0.00015547,2]
[334078353,1722741044564,-500.0,0.00015547,2]
[334078354,1722741044574,-500.0,0.00015547,2]
[334078355,1722741044583,-507.625332,0.00015547,2]
[334078356,1722741044593,-500.0,0.00015547,2]
[334078357,1722741044602,-500.0,0.00015547,2]
[334078358,1722741044612,-500.0,0.00015547,2]
[334078359,1722741044622,-500.0,0.00015547,2]
[334078360,1722741044631,-503.36851869,0.00015547,2]
[334078361,1722741044641,-500.0,0.00015547,2]
[334078362,1722741044650,-500.0,0.00015547,2]
[334078363,1722741044659,-506.46612656,0.00015547,2]
[334078364,1722741044669,-500.0,0.00015547,2]
[334078365,1722741044678,-500.0,0.00015547,2]
[334078366,1722741044688,-177.52700457,0.00015547,2]
[334078367,1722741044698,-517.56785215,0.00015547,2]
[334078368,1722741044707,-500.0,0.00015547,2]
[334078369,1722741044716,-507.79525928,0.00015547,2]
[334078370,1722741044728,-319.48608188,0.00015547,2]
[334078371,1722741044744,-502.18283104,0.00015547,2]
[334078372,1722741044753,-521.0877309,0.00015547,2]
[334078373,1722741044762,-506.36612724,0.00015547,2]
[334078374,1722741044774,-505.99342401,0.00015547,2]
[334078375,1722741044784,-500.87043241,0.00015547,2]
[334078376,1722741044795,-502.93737006,0.00015547,2]
[334078377,1722741044807,-500.0,0.00015547,2]
[334078378,1722741044817,-503.37651709,0.00015547,2]
[334078379,1722741044830,-501.63256543,0.00015547,2]
[334078380,1722741044841,-501.92902515,0.00015547,2]
[334078381,1722741044853,-500.0,0.00015547,2]
[334078382,1722741044863,-391.20298666,0.00015547,2]
[334078383,1722741044873,-446.84523942,0.00015547,2]
[334078384,1722741044883,-501.51359622,0.00015547,2]
[334078385,1722741044892,-504.65693824,0.00015547,2]
[334078386,1722741044902,-502.40095108,0.00015547,2]
[334078387,1722741044911,-540.84,0.00015547,2]
[334078388,1722741044921,-501.73103367,0.00015547,2]
[334078389,1722741044930,-500.70328412,0.00015547,2]
[334078390,1722741044942,-501.75039676,0.00015547,2]
[334078391,1722741044953,-500.0,0.00015547,2]
[334078392,1722741044963,-503.11859319,0.00015547,2]
[334078393,1722741044973,-500.7670819,0.00015547,2]
[334078394,1722741044983,-502.41684054,0.00015547,2]
[334078395,1722741044995,-502.85088038,0.00015547,2]
[334078397,1722741045006,-500.0,0.00015547,2]
[334078399,1722741045017,-501.40711586,0.00015547,2]
[334078401,1722741045028,-426.85796299,0.00015547,2]
[334078403,1722741045038,-500.95180688,0.00015547,2]
[334078404,1722741045048,-500.22886185,0.00015547,2]
[334078405,1722741045058,-505.78543384,0.00015547,2]
[334078406,1722741045067,-500.0,0.00015547,2]
[334078407,1722741045077,-416.46218863,0.00015547,2]
[334078408,1722741045087,-500.0,0.00015547,2]
[334078409,1722741045098,-500.0,0.00015547,2]
[334078410,1722741045109,-505.31740955,0.00015547,2]
[334078411,1722741045119,-504.78515738,0.00015547,2]
[334078412,1722741045128,-500.0,0.00015547,2]
[334078413,1722741045138,-504.50264457,0.00015547,2]
[334078414,1722741045148,-507.58705273,0.00015547,2]
[334078415,1722741045157,-503.98290407,0.00015547,2]
[334078416,1722741045167,-563.86018094,0.00015547,2]
[334078417,1722741045176,-503.02762974,0.00015547,2]
[334078418,1722741045186,-502.13770688,0.00015547,2]
[334078419,1722741045195,-528.87956621,0.00015547,2]
[334078420,1722741045206,-502.95494964,0.00015547,2]
[334078421,1722741045216,-500.0,0.00015547,2]
[334078422,1722741045225,-509.736964,0.00015547,2]
[334078423,1722741045234,-504.50018579,0.00015547,2]
[334078424,1722741045246,-504.89714018,0.00015547,2]
[334078425,1722741045256,-500.0,0.00015547,2]
[334078426,1722741045266,-508.29559983,0.00015547,2]
[334078427,1722741045275,-501.67144228,0.00015547,2]
[334078428,1722741045285,-410.44593988,0.00015547,2]
[334078429,1722741045294,-500.0,0.00015547,2]
[334078430,1722741045304,-504.73228027,0.00015547,2]
[334078431,1722741045314,-512.13940254,0.00015547,2]
[334078432,1722741045324,-500.0,0.00015547,2]
[334078433,1722741045333,-500.0,0.00015547,2]
[334078434,1722741045343,-500.0,0.00015547,2]
[334078435,1722741045353,-500.0,0.00015547,2]
[334078436,1722741045363,-525.45792445,0.00015547,2]
[334078437,1722741045373,-415.92558544,0.00015547,2]
[334078438,1722741045384,-369.69896111,0.00015568,2]
[334078439,1722741045396,-500.0,0.00015576,2]
[334078440,1722741045407,-500.0,0.00015576,2]
[334078441,1722741045417,-500.0,0.00015576,2]
[334078442,1722741045429,-502.50149679,0.00015576,2]
[334078443,1722741045439,-500.0,0.00015576,2]
[334078444,1722741045449,-500.0,0.00015576,2]
[334078445,1722741045461,-7706.32563378,0.00015578,2]
[334078446,1722741045476,-250.000025,0.00015578,2]
[334078556,1722742028161,-300.99621399,9.999e-05,2]
[334078557,1722742028183,-156.96415589,9.999e-05,2]
[334078558,1722742028204,-93.15112404,9.999e-05,2]
[334078559,1722742032131,-62.70129782,9.999e-05,2]
[334078560,1722742032154,-523.06806918,9.999e-05,2]
[334078561,1722742032179,-297.453215,0.00014247,2]
[334078562,1722742032204,-643.03125,0.00014247,2]
[334078563,1722742032226,-194.5599409,0.0001469,2]
[334078564,1722742032247,-154.72922386,0.0001469,2]
[334078565,1722742032269,-1410.0,0.00014937,2]
[334078566,1722742032296,-300.0,0.00014999,2]
[334078567,1722742032317,-951.69950854,0.00015,2]
[334078568,1722742032340,-1108.76834352,0.00015,2]
[334078569,1722742032363,-1547.08341094,0.00015309,2]
[334078570,1722742044108,-678.99197447,0.00015309,2]
[334078571,1722742051093,-464.30250349,0.00015309,2]
[334078573,1722742086488,500.0,0.00027,120]
[334078575,1722742122603,9714.89778146,0.00023,120]
[334078576,1722742210001,763.0,0.00027,120]
[334078718,1722742238020,-282.580554,0.00014247,2]
[334078719,1722742238031,-367.80729453,0.0001514,2]
[334078720,1722742238041,-3027.62312062,0.00015435,2]
[334078721,1722742238054,-507.07014594,0.00015534,2]
[334078722,1722742238064,-505.33153375,0.00015534,2]
[334078723,1722742238074,-500.0,0.00015534,2]
[334078724,1722742238085,-500.0,0.00015534,2]
[334078725,1722742238096,-400.43935016,0.00015534,2]
[334078726,1722742238751,-99.56064984,0.00015534,2]
[334078727,1722742238762,-505.20823688,0.00015534,2]
[334078728,1722742238771,-504.45402065,0.00015534,2]
[334078729,1722742238782,-505.35252631,0.00015534,2]
[334078730,1722742238791,-508.05856263,0.00015534,2]
[334078731,1722742238802,-512.93848006,0.00015534,2]
[334078732,1722742238811,-536.32627344,0.00015534,2]
[334078733,1722742238821,-506.26011813,0.00015534,2]
[334078734,1722742238831,-507.32147377,0.00015534,2]
[334078735,1722742238840,-506.37237363,0.00015534,2]
[334078736,1722742238849,-509.24854051,0.00015534,2]
[334078737,1722742238859,-500.0,0.00015534,2]
[334078738,1722742238868,-500.0,0.00015534,2]
[334078739,1722742238878,-500.0,0.00015534,2]
[334078740,1722742238888,-500.0,0.00015534,2]
[334078741,1722742238897,-500.0,0.00015534,2]
[334078742,1722742238907,-500.0,0.00015534,2]
[334078743,1722742238917,-500.0,0.00015534,2]
[334078744,1722742238926,-500.0,0.00015534,2]
[334078745,1722742238936,-500.0,0.00015534,2]
[334078746,1722742238946,-503.82819706,0.00015534,2]
[334078747,1722742238955,-500.0,0.00015534,2]
[334078748,1722742238964,-500.0,0.00015534,2]
[334078749,1722742238974,-530.6157711,0.00015534,2]
[334078750,1722742238986,-500.0,0.00015534,2]
[334078751,1722742238996,-539.88516613,0.00015534,2]
[334078752,1722742239005,-504.61163053,0.00015534,2]
[334078753,1722742239017,-500.0,0.00015534,2]
[334078754,1722742239027,-508.79361447,0.00015534,2]
[334078755,1722742239037,-781.93,0.00015534,2]
[334078756,1722742239048,-507.62063113,0.00015534,2]
[334078757,1722742239057,-482.97517498,0.00015534,2]
[334078758,1722742239069,-502.76482362,0.00015534,2]
[334078759,1722742239078,-505.6536531,0.00015534,2]
[334078760,1722742239088,-500.0,0.00015534,2]
[334078761,1722742239098,-507.01841109,0.00015534,2]
[334078762,1722742239108,-500.0,0.00015534,2]
[334078763,1722742239119,-644.18,0.00015534,2]
[334078764,1722742239130,-500.0,0.00015534,2]
[334078765,1722742239140,-506.18822608,0.00015534,2]
[334078766,1722742239150,-151.66237897,0.00015534,2]
[334078767,1722742239160,-504.60734866,0.00015534,2]
[334078768,1722742239171,-500.0,0.00015534,2]
[334078769,1722742239183,-500.0,0.00015534,2]
[334078770,1722742239194,-500.0,0.00015534,2]
[334078771,1722742239206,-500.0,0.00015534,2]
[334078772,1722742239217,-510.28963112,0.00015534,2]
[334078773,1722742239226,-513.30103576,0.00015534,2]
[334078774,1722742239237,-506.67091348,0.00015534,2]
[334078775,1722742239247,-500.0,0.00015534,2]
[334078776,1722742239257,-611.19,0.00015534,2]
[334078777,1722742239266,-500.0,0.00015534,2]
[334078778,1722742239276,-481.13435469,0.00015534,2]
[334078779,1722742239286,-501.96275287,0.00015534,2]
[334078780,1722742239295,-508.04837344,0.00015534,2]
[334078781,1722742239304,-500.0,0.00015534,2]
[334078782,1722742239313,-500.0,0.00015534,2]
[334078783,1722742239323,-500.0,0.00015534,2]
[334078784,1722742239332,-507.41922121,0.00015534,2]
[334078785,1722742239342,-500.0,0.00015534,2]
[334078786,1722742239356,-502.17168713,0.00015534,2]
[334078787,1722742239367,-500.0,0.00015534,2]
[334078788,1722742239378,-86.15763173,0.00015534,2]
[334078795,1722742240343,-413.84236827,0.00015534,2]
[334078796,1722742240356,-521.95032553,0.00015534,2]
[334078798,1722742240366,-500.0,0.00015534,2]
[334078800,1722742240377,-500.0,0.00015534,2]
[334078801,1722742240388,-500.0,0.00015534,2]
[334078802,1722742240399,-500.0,0.00015534,2]
[334078803,1722742240409,-178.59696133,0.00015534,2]
[334078804,1722742240419,-75765.3910143,0.00015535,2]
[334078805,1722742240431,-500.0,0.00015535,2]
[334078806,1722742240441,-504.32537575,0.00015535,2]
[334078807,1722742240451,-168.30402837,0.00015535,2]
[334078808,1722742240460,-500.0,0.00015535,2]
[334078809,1722742240470,-500.0,0.00015535,2]
[334078810,1722742240479,-487.49392639,0.00015535,2]
[334078811,1722742240489,-501.99256756,0.00015535,2]
[334078812,1722742240499,-500.0,0.00015535,2]
[334078813,1722742240508,-506.65090773,0.00015535,2]
[334078814,1722742240518,-500.0,0.00015535,2]
[334078815,1722742240528,-505.47457258,0.00015535,2]
[334078816,1722742240538,-503.46953517,0.00015535,2]
[334078817,1722742240547,-502.88212471,0.00015535,2]
[334078818,1722742240557,-180.60154366,0.00015535,2]
[334078819,1722742240567,-505.65557175,0.00015535,2]
[334078820,1722742240576,-507.71760359,0.00015535,2]
[334078821,1722742240586,-508.10708415,0.00015535,2]
[334078822,1722742240595,-500.0,0.00015545,2]
[334078823,1722742240605,-502.74565143,0.00015545,2]
[334078824,1722742240615,-576.54565609,0.00015545,2]
[334078825,1722742240624,-500.0,0.00015545,2]
[334078826,1722742240634,-498.18044454,0.00015545,2]
[334078827,1722742240643,-510.21398286,0.00015545,2]
[334078828,1722742240654,-500.0,0.00015545,2]
[334078829,1722742240663,-500.0,0.00015545,2]
[334078830,1722742240672,-503.39891753,0.00015545,2]
[334078831,1722742240682,-503.33252529,0.00015545,2]
[334078832,1722742240692,-500.0,0.00015545,2]
[334078833,1722742240702,-500.0,0.00015545,2]
[334078834,1722742240712,-500.0,0.00015545,2]
[334078835,1722742240721,-502.26911877,0.00015545,2]
[334078836,1722742240733,-500.0,0.00015545,2]
[334078837,1722742240743,-507.11244392,0.00015545,2]
[334078838,1722742240752,-502.42946336,0.00015545,2]
[334078839,1722742240762,-514.20577784,0.00015545,2]
[334078840,1722742240771,-500.0,0.00015545,2]
[334078841,1722742240781,-504.10204132,0.00015545,2]
[334078842,1722742240792,-397.28660429,0.00015545,2]
[334078843,1722742240802,-504.18263956,0.00015545,2]
[334078844,1722742240812,-502.44100734,0.00015545,2]
[334078845,1722742240821,-500.0,0.00015545,2]
[334078846,1722742240831,-500.0,0.00015545,2]
[334078847,1722742240840,-582.00549918,0.00015545,2]
[334078848,1722742240849,-500.0,0.00015545,2]
[334078849,1722742240859,-633.56,0.00015545,2]
[334078850,1722742240869,-502.8302275,0.00015545,2]
[334078851,1722742240878,-500.0,0.00015545,2]
[334078852,1722742240889,-503.9939455,0.00015545,2]
[334078853,1722742240900,-503.82328563,0.00015545,2]
[334078854,1722742240912,-500.0,0.00015545,2]
[334078855,1722742240921,-500.0,0.00015545,2]
[334078856,1722742240932,-500.0,0.00015545,2]
[334078857,1722742240941,-510.32741853,0.00015545,2]
[334078858,1722742240951,-507.0536165,0.00015545,2]
[334078859,1722742240960,-523.41549168,0.00015545,2]
[334078860,1722742240969,-500.0,0.00015545,2]
[334078861,1722742240978,-500.0,0.00015545,2]
[334078862,1722742240989,-500.0,0.00015545,2]
[334078863,1722742241000,-504.84050044,0.00015545,2]
[334078864,1722742241010,-500.0,0.00015545,2]
[334078865,1722742241021,-506.1729674,0.00015545,2]
[334078866,1722742241030,-500.0,0.00015545,2]
[334078867,1722742241041,-500.0,0.00015545,2]
[334078868,1722742241051,-500.0,0.00015545,2]
[334078869,1722742241062,-500.0,0.00015545,2]
[334078870,1722742241071,-500.0,0.00015545,2]
[334078871,1722742241081,-500.0,0.00015545,2]
[334078872,1722742241090,-500.0,0.00015545,2]
[334078873,1722742241101,-500.0,0.00015545,2]
[334078874,1722742241110,-508.97895669,0.00015545,2]
[334078875,1722742241119,-500.0,0.00015545,2]
[334078876,1722742241129,-500.0,0.00015545,2]
[334078877,1722742241138,-606.436354,0.00015545,2]
[334078878,1722742241147,-500.0,0.00015545,2]
[334078879,1722742241156,-500.0,0.00015545,2]
[334078880,1722742241165,-500.0,0.00015545,2]
[334078881,1722742241174,-500.0,0.00015545,2]
[334078882,1722742241185,-500.0,0.00015545,2]
[334078883,1722742241195,-500.0,0.00015545,2]
[334078884,1722742241206,-158.06293243,0.00015545,2]
[334078885,1722742241218,-507.30775611,0.00015545,2]
[334078886,1722742241229,-501.80182994,0.00015545,2]
[334078887,1722742241240,-500.0,0.00015545,2]
[334078888,1722742241250,-500.0,0.00015545,2]
[334078889,1722742241261,-500.0,0.00015545,2]
[334078890,1722742241273,-500.0,0.00015545,2]
[334078891,1722742241283,-506.15694793,0.00015545,2]
[334078892,1722742241293,-395.68130995,0.00015545,2]
[334078893,1722742241304,-500.0,0.00015545,2]
[334078894,1722742241314,-503.12975482,0.00015545,2]
[334078895,1722742241324,-500.0,0.00015545,2]
[334078896,1722742241335,-504.58295255,0.00015545,2]
[334078897,1722742241348,-500.0,0.00015545,2]
[334078898,1722742241363,-503.76613973,0.00015545,2]
[334078899,1722742241374,-505.24588105,0.00015545,2]
[334078900,1722742241385,-505.97854751,0.00015545,2]
[334078901,1722742241399,-500.0,0.00015545,2]
[334078902,1722742241410,-502.40110269,0.00015545,2]
[334078903,1722742241420,-500.0,0.00015545,2]
[334078904,1722742241519,-500.0,0.00015545,2]
[334078905,1722742241529,-500.0,0.00015545,2]
[334078906,1722742241538,-503.01174021,0.00015545,2]
[334078907,1722742241547,-500.0,0.00015545,2]
[334078908,1722742241560,-500.0,0.00015545,2]
[334078909,1722742241573,-502.13332018,0.00015545,2]
[334078910,1722742241584,-502.71330386,0.00015545,2]
[334078911,1722742241594,-511.74699084,0.00015545,2]
[334078912,1722742241605,-503.11315717,0.00015545,2]
[334078913,1722742241615,-500.0,0.00015545,2]
[334078914,1722742241626,-500.0,0.00015545,2]
[334078915,1722742241636,-500.0,0.00015545,2]
[334078916,1722742241649,-500.0,0.00015545,2]
[334078917,1722742241660,-503.54208648,0.00015545,2]
[334078918,1722742241669,-500.0,0.00015545,2]
[334078919,1722742241679,-500.0,0.00015545,2]
[334078920,1722742241691,-500.0,0.00015545,2]
[334078921,1722742241703,-500.0,0.00015545,2]
[334078922,1722742241712,-500.0,0.00015545,2]
[334078923,1722742241724,-500.0,0.00015545,2]
[334078924,1722742241738,-500.0,0.00015545,2]
[334078925,1722742241749,-504.48911429,0.00015545,2]
[334078926,1722742241759,-500.0,0.00015545,2]
[334078927,1722742241770,-502.77146504,0.00015545,2]
[334078928,1722742241781,-504.00770863,0.00015545,2]
[334078929,1722742241793,-557.42,0.00015545,2]
[334078930,1722742241804,-617.39056301,0.00015545,2]
[334078931,1722742241817,-503.59183763,0.00015545,2]
[334078932,1722742241828,-500.0,0.00015545,2]
[334078933,1722742241839,-506.02107675,0.00015545,2]
[334078934,1722742241849,-500.0,0.00015545,2]
[334078935,1722742241858,-473.66058194,0.00015545,2]
[334078936,1722742241867,-562.47182384,0.00015545,2]
[334078937,1722742241877,-508.89312654,0.00015545,2]
[334078938,1722742241886,-503.75354781,0.00015545,2]
[334078939,1722742241896,-500.0,0.00015545,2]
[334078940,1722742241907,-503.93575554,0.00015545,2]
[334078941,1722742241918,-500.0,0.00015545,2]
[334078942,1722742241929,-500.0,0.00015545,2]
[334078943,1722742241938,-500.0,0.00015545,2]
[334078944,1722742241950,-500.0,0.00015545,2]
[334078945,1722742241961,-500.0,0.00015545,2]
[334078946,1722742241972,-505.15513599,0.00015545,2]
[334078947,1722742241983,-441.72246151,0.00015545,2]
[334078960,1722742243046,-58.27753849,0.00015545,2]
[334078961,1722742243056,-500.0,0.00015545,2]
[334078962,1722742243065,-132.9295226,0.00015545,2]
[334079002,1722742246368,-367.0704774,0.00015545,2]
[334079004,1722742246379,-500.0,0.00015545,2]
[334079005,1722742246391,-500.0,0.00015545,2]
[334079006,1722742246404,-201.07591791,0.00015545,2]
[334079007,1722742246414,-500.0,0.00015545,2]
[334079008,1722742246424,-615.48966042,0.00015545,2]
[334079009,1722742246438,-565.27671087,0.00015545,2]
[334079010,1722742246450,-500.0,0.00015546,2]
[334079011,1722742246459,-500.0,0.00015546,2]
[334079012,1722742246471,-500.35421228,0.00015546,2]
[334079013,1722742246481,-503.58896716,0.00015546,2]
[334079014,1722742246491,-500.0,0.00015546,2]
[334079015,1722742246501,-501.32013136,0.00015546,2]
[334079016,1722742246510,-501.08590162,0.00015546,2]
[334079017,1722742246519,-500.99249448,0.00015546,2]
[334079018,1722742246530,-500.0,0.00015546,2]
[334079019,1722742246539,-501.05478174,0.00015546,2]
[334079020,1722742246549,-500.0,0.00015546,2]
[334079021,1722742246558,-200.0,0.00015573,2]
[334079022,1722742246568,-957.0,0.000156,2]
[334079023,1722742246577,-5702.64096736,0.00015609,2]
[334079024,1722742246588,-10259.9297774,0.00015688,2]
[334079043,1722743229112,-273.37336231,9.9e-05,2]
[334079044,1722743229134,-750.0,0.00014247,2]
[334079045,1722743229156,-286.60806988,0.0001469,2]
[334079046,1722743229175,-569.81505045,0.00015,2]
[334079047,1722743235098,-608.88656767,0.00015,2]
[334079048,1722743240132,-1669.6616464,0.00015,2]
[334079049,1722743240154,-1411.0,0.00015136,2]
[334079050,1722743240177,-150.55,0.00015136,2]
[334079051,1722743240202,-367.88690048,0.00015357,2]
[334079052,1722743240225,-316.47262193,0.00015434,2]
[334079053,1722743250101,-1443.63422245,0.00015434,2]
[334079082,1722743432133,-161.664019,0.00014247,2]
[334079084,1722743432145,-521.80785268,0.00015136,2]
[334079100,1722743438319,-252.87514732,0.00015136,2]
[334079101,1722743438331,-154.72922386,0.00015434,2]
[334079102,1722743438342,-1144.37267732,0.00015434,2]
[334079103,1722743438355,-154.72922386,0.00015434,2]
[334079104,1722743438366,-3087.71243299,0.00015434,2]
[334079105,1722743438378,-2191.81967844,0.0001548,2]
[334079106,1722743438796,-346.30405466,0.0001548,2]
[334079107,1722743438808,-248.81611227,0.00015533,2]
[334079108,1722743438818,-584.65357272,0.00015533,2]
[334079109,1722743438828,-509.86280889,0.00015533,2]
[334079110,1722743438839,-503.13614339,0.00015533,2]
[334079111,1722743438849,-504.59502266,0.00015533,2]
[334079112,1722743438862,-503.02444721,0.00015533,2]
[334079113,1722743438872,-504.33512666,0.00015533,2]
[334079114,1722743438882,-258.4053805,0.00015533,2]
[334079115,1722743438892,-501.84452298,0.00015533,2]
[334079116,1722743438903,-501.56980269,0.00015533,2]
[334079117,1722743438913,-500.0,0.00015533,2]
[334079118,1722743438923,-503.48043968,0.00015533,2]
[334079119,1722743438933,-504.60679637,0.00015533,2]
[334079120,1722743438943,-504.39779705,0.00015533,2]
[334079121,1722743438954,-243.28731403,0.00015533,2]
[334079122,1722743438964,-502.83046586,0.00015533,2]
[334079123,1722743438974,-500.0,0.00015533,2]
[334079124,1722743438984,-248.75743727,0.00015533,2]
[334079125,1722743438995,-500.0,0.00015533,2]
[334079126,1722743439005,-440.88700644,0.00015533,2]
[334079127,1722743439015,-500.0,0.00015533,2]
[334079128,1722743439025,-500.0,0.00015533,2]
[334079129,1722743439035,-503.50111287,0.00015533,2]
[334079130,1722743439046,-504.49005154,0.00015533,2]
[334079131,1722743439058,-500.0,0.00015533,2]
[334079132,1722743439069,-500.0,0.00015533,2]
[334079133,1722743439082,-500.0,0.00015533,2]
[334079134,1722743439092,-500.0,0.00015533,2]
[334079135,1722743439105,-500.0,0.00015533,2]
[334079136,1722743439116,-103.39101499,0.00015533,2]
[334079137,1722743439225,-52.73945567,0.00015533,2]
[334079138,1722743439236,-500.0,0.00015533,2]
[334079139,1722743439247,-500.0,0.00015533,2]
[334079140,1722743439262,-500.0,0.00015533,2]
[334079141,1722743439273,-500.0,0.00015533,2]
[334079142,1722743439285,-503.2185885,0.00015533,2]
[334079143,1722743439296,-500.0,0.00015533,2]
[334079144,1722743439307,-749.35,0.00015533,2]
[334079145,1722743439317,-237.38540287,0.00015533,2]
[334079146,1722743439327,-500.0,0.00015533,2]
[334079147,1722743439338,-617.34,0.00015533,2]
[334079148,1722743439349,-500.0,0.00015533,2]
[334079149,1722743439361,-500.0,0.00015533,2]
[334079150,1722743439372,-500.0,0.00015533,2]
[334079151,1722743439383,-607.16,0.00015533,2]
[334079152,1722743439529,-500.0,0.00015533,2]
[334079153,1722743439540,-500.0,0.00015533,2]
[334079154,1722743439549,-181.47324353,0.00015533,2]
[334079155,1722743439559,-252.89772669,0.00015534,2]
[334079156,1722743439569,-500.0,0.00015534,2]
[334079157,1722743439578,-500.0,0.00015534,2]
[334079158,1722743439588,-500.0,0.00015534,2]